Cogmind - Beta 14 @@@ ROGUE MODE // 2024.10.07 @ 20:59:35 Player: THN-L0C Result: Destroyed by A4-V4J(R) with Subdweller Machine Gun Performance ------------- Evolutions (0) 0 Regions Visited (2) 400 Robots Destroyed (36) 180 Value Destroyed (829) 829 Prototype IDs (11) 220 Alien Tech Used (0) 0 Bonus (0) 0 TOTAL SCORE: 1629 Bonus ------- None Cogmind --------- Core Integrity 0/250 Matter 276/300 Energy 125/125 System Corruption 0% Temperature Cool (0) Movement Treading (160) Location -10/Subcaves Parts ------- > --- POWER (1) -------- Light Ion Engine > --- PROPULSION (2) --- Light Treads Spiked Treads > --- UTILITY (2) ------ Large Storage Unit Makeshift Light Armor Plating > --- WEAPON (2) ------- Battle Rifle Battle Rifle > --- INVENTORY (15) --- Makeshift Power Source Wheel Flightbrick Improved Heat Sink High-capacity Matter Pod (200) Improved Terrain Scanner Subdweller Beam Cannon Subdweller Beam Cannon Battle Rifle Multitool Makeshift Sword Peak State ------------ > --- POWER ------------ Light Ion Engine > --- PROPULSION ------- Light Treads Spiked Treads > --- UTILITY ---------- Large Storage Unit Makeshift Light Armor Plating > --- WEAPON ----------- Battle Rifle Makeshift Sword > --- INVENTORY -------- Makeshift Power Source Wheel Flightbrick Improved Heat Sink High-capacity Matter Pod Improved Terrain Scanner Subdweller Beam Cannon Subdweller Beam Cannon Battle Rifle Battle Rifle Multitool [Rating: 20] Favorites ----------- Power Light Ion Engine Engine Light Ion Engine Propulsion Light Treads Treads Light Treads Utility Large Storage Unit Device Improved Terrain Scanner Storage Large Storage Unit Protection Light Armor Plating Weapon Makeshift Sword Energy Gun Medium Laser Energy Cannon Subdweller Beam Cannon Ballistic Gun Battle Rifle Special Weapon Mining Laser Slashing Weapon Makeshift Sword Build | -11 -10 -10 ------- Run | Yrd Mat Sub Slots Evolved . | . . . Power . | . . . Propulsion . | . . . Utility . | . . . Weapon . | . . . Parts Attached 73 | 8 9 56 Power 3 | 1 1 1 Engine 3 | 1 1 1 Core . | . . . Reactor . | . . . Propulsion 6 | 2 . 4 Treads 6 | 2 . 4 Leg . | . . . Wheel . | . . . Hover . | . . . Flight . | . . . Utility 37 | 2 3 32 Device 27 | 1 1 25 Storage 2 | 1 1 . Processor . | . . . Hackware . | . . . Protection 8 | . 1 7 Artifact . | . . . Weapon 27 | 3 5 19 Energy Gun 4 | 2 1 1 Energy Cannon 1 | . . 1 Ballistic Gun 11 | 1 1 9 Ballistic Cannon . | . . . Launcher . | . . . Special Weapon 4 | . 3 1 Impact Weapon . | . . . Slashing Weapon 7 | . . 7 Piercing Weapon . | . . . Special Melee Weapon . | . . . Unidentified Prototypes . | . . . Parts Lost 3 | . . 3 Power . | . . . Propulsion 1 | . . 1 Utility 2 | . . 2 Weapon . | . . . Highest Loss Streak 1 | . . 1 To Critical Strikes . | . . . Average Slot Usage (%) 99 | . 100 99 Engine 14 | . 14 14 Treads 27 | . 28 27 Device 13 | . 10 13 Storage 14 | . 14 14 Energy Gun 2 | . 13 1 Ballistic Gun 14 | . 13 14 Slashing Weapon 10 | . . 11 Peak Build Rating 20 | 7 8 20 Average Rating 15 | 6 7 17 On Entrance 5 | . 7 8 Naked Turns . | . . . Heaviest Build 34 | 13 32 34 Greatest Support 40 | 40 40 40 Greatest Overweight (x) . | . . . Average Overweight (x) . | . . . Largest Inventory Capacity 15 | 8 15 15 Average Capacity 14 | 7 13 15 Most Carried 15 | 3 11 15 Average Carried 13 | 2 5 14 Final Capacity 15 | 8 15 15 Final Carried 14 | 3 11 14 Class Distribution -------------------- 98% | Mutant Dominant Class ---------------- Mutant | -10/Materials Mutant | -10/Subcaves Resources | -11 -10 -10 ----------- Run | Yrd Mat Sub Matter Collected 1980 | 378 711 891 Remotely . | . . . Salvage Created 1408 | 301 368 739 Parts 87 | 18 20 49 Haulers Intercepted 1 | . 1 . Recyclers Shooed 1 | 1 . . Parts Field Recycled . | . . . Retrieved Matter . | . . . Parts Self-Destructed 12 | . . 12 Prevented . | . . . Kills | -11 -10 -10 ------- Run | Yrd Mat Sub Combat Hostiles Destroyed 21 | . 6 15 Melee 2 | . . 2 Guns 19 | . 6 13 Classes Destroyed 9 | 3 4 2 Worker 6 | 4 2 . Tunneler 5 | 5 . . Hauler 1 | . 1 . Recycler 2 | 1 1 . Watcher 1 | . 1 . Swarmer 3 | . 3 . Grunt 3 | . 3 . Artisan 1 | . . 1 Subdweller 15 | . . 15 Best Kill Streak 5 | 3 5 2 Combat Bots Only 4 | . 4 2 Max Kills in Single Turn 2 | 2 1 1 Gunslinging . | . . . Exploded . | . . . Melee 1 | . . 1 Uniques/NPCs Destroyed . | . . . Combat | -11 -10 -10 -------- Run | Yrd Mat Sub Hostile Shots Fired 85 | . 34 51 Missed 23 | . 6 17 Damage Taken 1253 | . 345 908 Core 266 | . 32 234 Absorbed by Shields . | . . . Core Remaining (%) 100 | 100 . . Volleys Fired 137 | 20 55 62 Largest 2 | 2 2 2 Hottest 100 | 70 100 100 Shots Fired 230 | 37 90 103 Gun 197 | 37 76 84 Cannon 15 | . . 15 Launcher . | . . . Special 18 | . 14 4 Kinetic 131 | 20 35 76 Thermal 97 | 15 55 27 Explosive . | . . . Electromagnetic 2 | 2 . . Robot Hit Streak 17 | 9 11 17 Robot Miss Streak 5 | 3 5 2 Penetration Max . | . . . Secondary Targets 2 | . . 2 Max Gunslinging Chain 1 | . . 1 Shots Hit Robots 139 | 25 43 71 Core Hits 59 | 11 18 30 Critical Kills . | . . . Critical Parts Destroyed . | . . . Critical Strikes 2 | 1 . 1 Burn 1 | 1 . . Destroy 1 | . . 1 Melee Attacks 37 | . . 37 Impact . | . . . Slashing 37 | . . 37 Piercing . | . . . Sneak Attacks . | . . . Combat Hostiles . | . . . Follow-up Attacks . | . . . Damage Inflicted 2014 | 323 545 1146 Guns 1839 | 323 545 971 Cannons . | . . . Explosions . | . . . Melee 175 | . . 175 Ramming . | . . . Kinetic 1287 | 145 248 894 Thermal 540 | 166 297 77 Explosive . | . . . Electromagnetic 12 | 12 . . Impact . | . . . Slashing 175 | . . 175 Piercing . | . . . Highest Corruption . | . . . Average Corruption . | . . . Corruption Purged . | . . . Corruption Blocked . | . . . Overload Shots . | . . . Overflow Damage . | . . . Projectiles . | . . . Explosions . | . . . Melee . | . . . Knockbacks . | . . . Impact . | . . . Kinetic . | . . . Secondary . | . . . Self-Inflicted Damage . | . . . Shots . | . . . Rammed . | . . . Targets Rammed . | . . . Kicked . | . . . Crushed . | . . . Highest Temperature 249 | 36 153 249 Average Temperature 38 | 13 38 142 Received Heat Transfer 616 | . 153 463 Siege Activations . | . . . Robots Corrupted . | . . . Combat Hostiles . | . . . Parts Fried . | . . . Impact Corruptions . | . . . Robots Melted . | . . . Combat Hostiles . | . . . Parts Melted 2 | . 2 . Heat Transferred 1665 | 555 888 222 Parts Sabotaged . | . . . Parts Stolen . | . . . Parts Stripped . | . . . Power Chain Reactions . | . . . Alert | -11 -10 -10 ------- Run | Yrd Mat Sub Peak Influence 155 | 50 155 . Initial . | . . . Average 31 | 17 40 . Maximum Alert Level . | . . . Low Security (%) 100 | 100 100 . Level 1 . | . . . Level 2 . | . . . Level 3 . | . . . Level 4 . | . . . Level 5 . | . . . High Security . | . . . Max Security . | . . . Squads Dispatched . | . . . Investigation . | . . . Extermination . | . . . Reinforcement . | . . . Assault . | . . . Garrison . | . . . Intercept . | . . . Searches Triggered . | . . . Construction Impeded . | . . . Haulers Reinforced . | . . . Active Scanning Responses . | . . . Cargo Convoy Interrupts . | . . . Stealth | -11 -10 -10 --------- Run | Yrd Mat Sub Distress Signals . | . . . Communications Jammed . | . . . Distress Signals . | . . . Times Spotted 32 | . 15 17 Peak Tracking Total 3 | . 3 2 Tactical Retreats 2 | . 2 . Traps | -11 -10 -10 ------- Run | Yrd Mat Sub Traps Triggered 4 | . 2 2 Indirectly . | . . . Trap Hack Attempts . | . . . Triggered . | . . . Disarmed . | . . . Reprogrammed . | . . . Reused . | . . . Traps Extracted . | . . . Installed . | . . . Triggered . | . . . Machines | -11 -10 -10 ---------- Run | Yrd Mat Sub Machines Disabled 1 | . . 1 Max in Single Turn 1 | . . 1 Machines Repaired . | . . . Machines Dismantled . | . . . Machines Sabotaged . | . . . Overloaded Fab Kills . | . . . Hacking | -11 -10 -10 --------- Run | Yrd Mat Sub Machines Accessed 7 | . 6 1 Terminals 6 | . 6 . Fabricators . | . . . Repair Stations . | . . . Recycling Units . | . . . Scanalyzers . | . . . Garrison Access . | . . . Total Hacks 17 | . 16 1 Successful 7 | . 6 1 Failed 10 | . 10 . Catastrophic 1 | . 1 . Database Lockouts . | . . . Manual 16 | . 16 . Terminals 16 | . 16 . Fabricators . | . . . Repair Stations . | . . . Recycling Units . | . . . Scanalyzers . | . . . Garrison Access . | . . . Terminal Hacks 2 | . 1 1 Robot Analysis 1 | . 1 . Derelict Proto ID Bank 1 | . . 1 Fabricator Hacks . | . . . Repair Station Hacks . | . . . Recycling Unit Hacks . | . . . Scanalyzer . | . . . Garrison Access Hacks . | . . . Unauthorized Hacks 5 | . 5 . Terminals 5 | . 5 . Skim 5 | . 5 . Fabricators . | . . . Repair Stations . | . . . Recycling Units . | . . . Scanalyzers . | . . . Garrison Access . | . . . Data Cores Recovered . | . . . Used . | . . . Hacking Detections 6 | . 6 . Full Trace Events . | . . . Feedback Events . | . . . Feedback Blocked . | . . . Robot Schematics Acquired . | . . . Robots Built . | . . . Authchips . | . . . Time . | . . . Total Robot Build Rating . | . . . Part Schematics Acquired . | . . . Parts Built . | . . . Authchips . | . . . Time . | . . . Total Part Build Rating . | . . . Parts Repaired . | . . . Time . | . . . Parts Recycled . | . . . Recycled Matter . | . . . Retrieved Matter . | . . . Retrieved Components . | . . . Parts Scanalyzed . | . . . Part Schematics Acquired . | . . . Parts Damaged . | . . . Bothacking | -11 -10 -10 ------------ Run | Yrd Mat Sub Used RIF Installer . | . . . Robots Hacked . | . . . Non-combat . | . . . Combat . | . . . Robot Hacks Applied . | . . . Relay Couplers Released . | . . . Fabnet Peak Effective % . | . . . Robots Rewired . | . . . Allies Hacked . | . . . Hacks Repelled . | . . . Allies | -11 -10 -10 -------- Run | Yrd Mat Sub Total Allies . | . . . Largest Group . | . . . Highest-Rated Group . | . . . Highest-Rated Ally . | . . . Total Orders . | . . . Ally Attacks . | . . . Total Damage . | . . . Kills . | . . . Allies Corrupted . | . . . Allies Melted . | . . . Intel | -11 -10 -10 ------- Run | Yrd Mat Sub Robot Analysis Total 1 | . 1 . Derelict Logs Recovered 1 | . . 1 Drone Launches . | . . . Drone Recoveries . | . . . Exploration | -11 -10 -10 ------------- Run | Yrd Mat Sub Turns Passed 16017 | 726 1246 14045 Spaces Moved 2880 | 95 594 2191 Core 4 | 4 . . Treads 2876 | 91 594 2191 Legs . | . . . Wheels . | . . . Hover . | . . . Flight . | . . . Fastest Speed 50 | 50 160 160 Average Speed 159 | 155 160 160 Slowest Speed 160 | 160 160 160 Overloaded Moves . | . . . Propulsion Burnouts . | . . . Robots Hopped . | . . . Cave-ins Triggered . | . . . Exploration Rate (%) 60 | 5 88 89 Regions Visited 2 Branch Regions 1 Pre-discovered Areas 1 | . . 1 Known Exits Taken 1 | . 1 . Unknown Exits Taken 1 | 1 . . Scrap Searched 5 | . . 5 Spaces Dug 14 | . 11 3 Terrain Destroyed 22 | . 14 8 Melee 1 | . . 1 Projectile 21 | . 14 7 AOE . | . . . Terrain Rammed . | . . . Walls Destroyed . | . . . Machines Disabled . | . . . Actions | -11 -10 -10 --------- Run | Yrd Mat Sub Total 13979 | 632 771 12576 Wait 10795 | 507 92 10196 Move 2878 | 94 593 2191 Hop . | . . . Pick Up 34 | 3 14 17 Fast Attach 8 | 7 1 . Attach 3 | . . 3 Detach . | . . . Swap 62 | 1 8 53 Drop 25 | . 8 17 Fire 137 | 20 55 62 Melee 37 | . . 37 Ram . | . . . Kick . | . . . Crush . | . . . Escape Stasis . | . . . Rewire . | . . . Trap . | . . . Miscellaneous . | . . . Route ------- -11/Scrapyard -10/Materials (discovered 6 exits: *Mat x3 / [*Min x2] / *Sub) -10/Subcaves (discovered 2 exits: *Mat x2) History --------- Turn | Location | Event 8 | -11/Scrapyard | Discovered new exit (range 16) 727 | -11/Scrapyard | Entered Materials 728 | -10/Materials | Build established: Mutant 943 | -10/Materials | Discovered new exit (range 16) 1383 | -10/Materials | Discovered new exit (range 15) 1496 | -10/Materials | Identified exit to Subcaves 1542 | -10/Materials | Loaded intel: 18 trap records 1558 | -10/Materials | Discovered new exit (range 3) 1576 | -10/Materials | Identified exit to Materials 1626 | -10/Materials | Learned location of 1 exit from Recycling 1627 | -10/Materials | Learned 4 Recycling zone layouts 1973 | -10/Materials | Entered Subcaves 1974 | -10/Subcaves | Identified exit to Materials 2166 | -10/Subcaves | Visited 4L-MR0's lab 2204 | -10/Subcaves | Found Flightbrick 3503 | -10/Subcaves | Shifting Twisted Machinery released Sub. Power Source 4055 | -10/Subcaves | Shifting Twisted Machinery released Sub. Beam Cannon 4090 | -10/Subcaves | Disturbed a concealed Subdweller 12219 | -10/Subcaves | A swath of the cavern ceiling suddenly collapsed 14987 | -10/Subcaves | Shifting Twisted Machinery released Sub. Power Source 14993 | -10/Subcaves | Shifting Twisted Machinery released Sub. Laser 15132 | -10/Subcaves | A swath of the cavern ceiling suddenly collapsed 15236 | -10/Subcaves | Core integrity fell below 50% 15340 | -10/Subcaves | Shifting Twisted Machinery released Battle Rifle 15357 | -10/Subcaves | Shifting Twisted Machinery released Sub. Beam Cannon 15840 | -10/Subcaves | Core integrity fell below 20% 15978 | -10/Subcaves | Learned location of Zion (-6) 16018 | -10/Subcaves | Destroyed by A4-V4J(R) with Subdweller Machine Gun Last Messages --------------- 15701_ Dropped Lgt. Treads. 15702_ Subatomizers dissect the Disposable Heat Sink. 15703_ Acquired 34 matter. 15713_ Subatomizers dissect the Disposable Heat Sink. 15840_ WB-3YC(R) destroyed. 15840_ Switching to secondary target: U9-AJ1(R). 15845_ Seismic Detector destroyed. 15845_ U9-AJ1(R) destroyed. 15848_ Acquired 37 matter. 15853_ Dropped Lgt. Treads. 15854_ Acquired 10 matter. 15866_ LH-0KL(R) destroyed. 15868_ Acquired 22 matter. 15956_ R1-1S5(R) destroyed. 15959_ Acquired 48 matter. 15978_ Acquired derelict log, extracted data. World map updated: -6/Zion. 15989_ Acquired 4 matter. 16013_ 2G-NAJ(R) destroyed. 16013_ Switching to secondary target: A4-V4J(R). Map ----- +----------------------------------------------------+ | & ## ==[ #?## !&= ##?????????????????? | | ### !&%! ### ]%& ! #?????????????????? | | #?#####* !=#!&"##"" "#####?????????????? | | #?????##=&& ####"### " " ##????????????? | | #???#####%% #??###?# """ #????????????? | | #??# # ! # ###????# """ #????????????? | | ### # ## ##???## ""##????????????? | | # # % ### % ##?#### ## "#?????????????? | | ## # #?### ### ### "##????????????? | | # #???## ### ""#????????????? | | # # ## ####????# # # "#????????????? | | ### ?# ##???????## # "#????????????? | | ## #### #????????? ### "#????????????? | | # #?# ##????????? ### #"# ##???????????? | | #?# ##??????""??#??# ####### "#???????????? | | #?# ##??????""???? #?????# "#???????????? | | ### ##????#""""" """"##?##### "#???????????? | | ## """##???" """""" " #?## " "#???????????? | | ] """""##??" ""#"#""""### "#???????????? | | " # """""#??""""###" "### #???????????? | | ""##### """"#### ##"# " " ##""" #???????????? | | " #?## """"""## ??""" " ## " #???????????? | | #?#" " """"# ???" "# &"! #???????????? | | #?# # """## #????# "### ####???????????? | | ###?# "### "### ####??# #?##"]#?????????????? | | ###???####?# "### %""##?#@ #??# ##?????????????? | | ???????????# ##"" ###%R ##### #?????????????? | | ##?????????# """" ] ##?????????????? | | #?#???????#% %"" "" # #??????????????? | | ??????????# % %%"" """" # ## ## #??????????????? | | ??????????## ################### #?????????????? | | ??###??????####?????????????????# #????????????? | | ???#?#??#???????????????????????# #???????????? | | ?##?????????????????????????????## #???????????? | | ##?#?###?????????????????????????? #???????????? | | ?#??#?#??#???????????????????????? ##???????????? | | ?????###?##???????????????????????##?????????????? | | ??##???#?##??????#??#????????????????????????????? | | #???##???##???###?#???#??????????????????????????? | | #?###???###??#??#?#?#???###??????????????????????? | | #???#?###?##?#?#???#?#?#?#???????????????????????? | | ###??###??##??##??#?##??#?#??????????????????????? | | ####?####???????###?##?????#????????????????????? | | ##??#?#??##?????????????#??#????????????????????? | | ##?#?#???#???????????#?????#????????????????????? | | #??#?#?#?######?####?##?#???????????????????????? | | ######?### # ### ####??#????#??????????????????? | | ##### ######?????????????????????? | | #?### ## #?????????????????????? | | #### # ##?#??????????????????? | +----------------------------------------------------+ Best States ------------- Heat Dissipation 25 Energy Generation 10 Energy Capacity 250 Matter Stores 300 Matter Capacity 300 Sight Range 16 Terrain Scan Range 16 Terrain Scan Density 10 Armor Coverage 150 Evasion (%) 40 Recoil Reduction 2 Item Schematics ----------------- None Robot Schematics ------------------ None Fabricated ------------ Nothing Alien Tech Used ----------------- None Achievements -------------- None Challenges ------------ None Game ------ Seed WaveRestorationRecalibrator Manual? 0 Play Time 00:34:44 Cumulative 310.8 hours Start 2024.10.07 @ 20:24:36 End 2024.10.07 @ 20:59:35 Sessions 1 Manual Loads 0 Difficulty Rogue Special Mode None Game No. 250 Rogue 250 Adventurer 0 Explorer 0 Win Type - Total 2 Types 1/0/0/1/0/0/0/0/0 Lore% 74 Gallery% 79 Achievement% 59 Wizard Run 0 Options --------- Layout 2 ASCII 0 Keyboard 1 Movement Vi Keybinds 0 Fullscreen 2 Font 32/SmallcapsGlow Map View 77x44 Zoom Use 0% Tactical HUD 1 Map Filters NONE Filters NONE Steam 1 RUN: 747f9f0e-e598-41ad-a755-316e021cdfd2